fUSD/lending_fUSD_20260226
["ID","MTS","AMOUNT","RATE_DAILY","PERIOD"]
[406727951,1772123455071,-500.0,0.00017808,2]
[406727952,1772123455081,-500.0,0.00017808,2]
[406727953,1772123455090,-665.69370601,0.00017808,2]
[406727954,1772123455100,-665.69370601,0.00017808,2]
[406727955,1772123455109,-665.69370601,0.00017808,2]
[406727956,1772123455118,-665.69370601,0.00017808,2]
[406727957,1772123455127,-665.69370601,0.00017808,2]
[406727958,1772123455136,-665.69370601,0.00017808,2]
[406727959,1772123455146,-665.69370601,0.00017808,2]
[406727960,1772123455156,-665.69370601,0.00017808,2]
[406727961,1772123455165,-654.72488926,0.00017808,2]
[406727962,1772123455175,-654.72488926,0.00017808,2]
[406727963,1772123455189,-654.72488926,0.00017808,2]
[406727964,1772123455206,-654.72488926,0.00017808,2]
[406727965,1772123455229,-654.72488926,0.00017808,2]
[406727966,1772123455239,-654.72488926,0.00017808,2]
[406727967,1772123455249,-654.72488926,0.00017808,2]
[406727968,1772123455258,-775.33210568,0.00017808,2]
[406727969,1772123455268,-1000.0,0.00017808,2]
[406727970,1772123455277,-800.0,0.00017808,2]
[406727971,1772123455286,-150.0,0.00017809,2]
[406727972,1772123455295,-150.0,0.00017812,2]
[406727973,1772123455304,-150.0,0.00017812,2]
[406727974,1772123455314,-529.0,0.00017813,2]
[406727975,1772123455324,-187.29970089,0.00017818,2]
[406727976,1772123455333,-156.66979557,0.00017818,2]
[406727977,1772123455342,-339.21457322,0.00017818,2]
[406727978,1772123455352,-150.0,0.0001782,2]
[406727979,1772123455362,-150.0,0.0001782,2]
[406727980,1772123455372,-392.03735,0.0001782,2]
[406727981,1772123455381,-392.03736,0.0001782,2]
[406727982,1772123455391,-158.27050591,0.0001782,2]
[406727983,1772123455400,-500.0,0.00017829,2]
[406727984,1772123455409,-500.0,0.00017829,17]
[406727985,1772123455419,-500.0,0.00017829,2]
[406727986,1772123455428,-500.0,0.00017829,2]
[406727987,1772123455437,-137550.62068451,0.0001783,2]
[406727988,1772123455446,-151.0,0.0001783,2]
[406727989,1772123455457,-151.0,0.0001783,2]
[406727990,1772123455466,-151.0,0.0001783,2]
[406727991,1772123455475,-150.0,0.00017833,2]
[406727992,1772123455485,-187.29970089,0.00017836,2]
[406727993,1772123455494,-156.66979557,0.00017836,2]
[406727994,1772123455503,-339.21457322,0.00017836,2]
[406727995,1772123455512,-150.0,0.00017836,2]
[406727996,1772123455522,-150.0,0.00017839,2]
[406727997,1772123455531,-350.0,0.0001784,4]
[406727998,1772123455540,-150.0,0.00017841,2]
[406727999,1772123455550,-1034.1174351,0.00017843,2]
[406728000,1772123455559,-150.0,0.00017843,2]
[406728001,1772123455573,-150.0,0.00017843,2]
[406728002,1772123455582,-235.0,0.00017846,2]
[406728003,1772123455591,-150.0,0.00017853,2]
[406728004,1772123455600,-187.29970089,0.00017855,2]
[406728005,1772123455611,-156.66979557,0.00017855,2]
[406728006,1772123455621,-339.21457322,0.00017855,2]
[406728007,1772123455630,-500.0,0.00017863,2]
[406728008,1772123455640,-150.0,0.00017864,2]
[406728009,1772123455650,-150.0,0.00017865,2]
[406728010,1772123455660,-150.0,0.00017866,2]
[406728011,1772123455669,-187.29970089,0.00017873,2]
[406728012,1772123455679,-156.66979557,0.00017873,2]
[406728013,1772123455688,-339.21457322,0.00017873,2]
[406728014,1772123455697,-150.0,0.00017874,2]
[406728015,1772123455707,-500.0,0.00017889,2]
[406728016,1772123455716,-500.0,0.0001789,2]
[406728017,1772123455725,-500.0,0.0001789,2]
[406728018,1772123455735,-500.0,0.0001789,2]
[406728019,1772123455744,-500.0,0.0001789,2]
[406728020,1772123455753,-384.80531288,0.0001789,2]
[406728021,1772123455762,-500.0,0.0001789,2]
[406728022,1772123455771,-500.0,0.0001789,2]
[406728023,1772123455781,-500.0,0.0001789,2]
[406728024,1772123455790,-391.644255,0.0001789,2]
[406728025,1772123455799,-500.0,0.0001789,18]
[406728026,1772123455808,-500.0,0.0001789,19]
[406728027,1772123455818,-500.0,0.0001789,20]
[406728028,1772123455827,-500.0,0.0001789,21]
[406728029,1772123455837,-500.0,0.0001789,21]
[406728030,1772123455846,-500.0,0.0001789,21]
[406728031,1772123455855,-384.61162915,0.0001789,21]
[406728032,1772123455864,-187.29970089,0.00017891,2]
[406728033,1772123455874,-156.66979557,0.00017891,2]
[406728034,1772123455884,-339.21457322,0.00017891,2]
[406728035,1772123455894,-150.0,0.00017891,2]
[406728036,1772123455903,-150.0,0.00017893,2]
[406728037,1772123455913,-150.0,0.00017894,2]
[406728038,1772123455923,-150.0,0.00017895,2]
[406728039,1772123455932,-500.0,0.00017899,2]
[406728040,1772123455941,-500.0,0.00017899,2]
[406728041,1772123455950,-27067.80659463,0.00017899,2]
[406728042,1772123455960,-25000.0,0.000179,3]
[406728043,1772123455970,-10000.0,0.000179,2]
[406728044,1772123455979,-153.208343,0.000179,2]
[406728045,1772123455988,-286.0347097,0.000179,2]
[406728046,1772123455997,-4991.64015429,0.000179,2]
[406728047,1772123456007,-151.0,0.000179,2]
[406728048,1772123456015,-2641.30302154,0.000179,2]
[406728049,1772123456025,-181.386797,0.000179,2]
[406728050,1772123456034,-181.386797,0.000179,2]
[406728051,1772123456043,-181.386797,0.000179,2]
[406728052,1772123456053,-181.386797,0.000179,2]
[406728053,1772123456063,-6147.0,0.000179,2]
[406728054,1772123456073,-239.0611416,0.00017903,2]
[406728055,1772123456082,-187.29970089,0.00017909,2]
[406728056,1772123456091,-156.66979557,0.00017909,2]
[406728057,1772123456101,-339.21457322,0.00017909,2]
[406728058,1772123456110,-150.0,0.0001791,2]
[406728059,1772123456119,-150.0,0.00017916,2]
[406728060,1772123456128,-500.0,0.00017918,2]
[406728061,1772123456138,-150.0,0.00017918,2]
[406728062,1772123456148,-150.0,0.00017919,2]
[406728063,1772123456157,-150.0,0.00017922,2]
[406728064,1772123456167,-150.0,0.00017922,2]
[406728065,1772123456176,-187.29970089,0.00017927,2]
[406728066,1772123456186,-156.66979557,0.00017927,2]
[406728067,1772123456195,-339.21457322,0.00017927,2]
[406728068,1772123456205,-150.0,0.00017937,2]
[406728069,1772123456214,-540.832,0.00017943,2]
[406728070,1772123456223,-187.29970089,0.00017945,2]
[406728071,1772123456232,-156.66979557,0.00017945,2]
[406728072,1772123456243,-339.21457322,0.00017945,2]
[406728073,1772123456252,-150.0,0.00017945,2]
[406728074,1772123456262,-150.0,0.00017946,2]
[406728075,1772123456271,-150.0,0.00017947,2]
[406728076,1772123456280,-150.0,0.00017955,2]
[406728077,1772123456290,-150.0,0.00017958,2]
[406728078,1772123456299,-187.29970089,0.00017964,2]
[406728079,1772123456309,-156.66979557,0.00017964,2]
[406728080,1772123456318,-339.21457322,0.00017964,2]
[406728081,1772123456327,-5800.0,0.00017965,2]
[406728082,1772123456337,-500.0,0.0001797,2]
[406728083,1772123456346,-500.0,0.0001797,2]
[406728084,1772123456356,-700.0,0.0001797,2]
[406728085,1772123456365,-500.0,0.0001797,2]
[406728086,1772123456374,-700.0,0.0001797,2]
[406728087,1772123456383,-500.0,0.0001797,2]
[406728088,1772123456483,-500.0,0.0001797,2]
[406728089,1772123456492,-700.0,0.0001797,2]
[406728090,1772123456501,-631.8277679,0.0001797,2]
[406728091,1772123456511,-700.0,0.0001797,2]
[406728092,1772123456520,-700.0,0.0001797,2]
[406728093,1772123456529,-700.0,0.0001797,2]
[406728094,1772123456538,-500.0,0.00017972,2]
[406728095,1772123456548,-174.26065421,0.00017973,2]
[406728096,1772123456557,-500.0,0.00017973,2]
[406728097,1772123456567,-500.0,0.00017973,2]
[406728098,1772123456582,-150.0,0.00017973,2]
[406728099,1772123456592,-150.0,0.00017973,2]
[406728100,1772123456602,-5800.0,0.00017973,2]
[406728101,1772123456613,-150.0,0.00017979,2]
[406728102,1772123456624,-187.29970089,0.00017982,2]
[406728103,1772123456635,-156.66979557,0.00017982,2]
[406728104,1772123456647,-339.21457322,0.00017982,2]
[406728105,1772123456657,-5800.0,0.00017982,2]
[406728106,1772123456666,-500.0,0.00017982,2]
[406728107,1772123456675,-151.0,0.00017987,2]
[406728108,1772123456685,-758.24459979,0.0001799,2]
[406728109,1772123456695,-339.340161,0.0001799,2]
[406728110,1772123456704,-339.340161,0.0001799,2]
[406728111,1772123456713,-339.340161,0.0001799,2]
[406728112,1772123456723,-339.340161,0.0001799,2]
[406728113,1772123456732,-1070.62307231,0.0001799,2]
[406728114,1772123456742,-5800.0,0.0001799,2]
[406728115,1772123456751,-150.0,0.00017996,7]
[406728116,1772123456760,-202.0,0.00017996,7]
[406728117,1772123456771,-151.0,0.00017997,2]
[406728118,1772123456781,-21356.2654446,0.00017999,2]
[406728119,1772123456790,-153228.1221333,0.00017999,2]
[406728120,1772123456799,-500.0,0.00017999,2]
[406728121,1772123456809,-500.0,0.00017999,2]
[406728122,1772123456818,-500.0,0.00017999,2]
[406728123,1772123456828,-585.34193538,0.00017999,2]
[406728124,1772123456837,-5800.0,0.00017999,2]
[406728125,1772123456847,-151.0,0.00017999,2]
[406728126,1772123456858,-150.0,0.00017999,2]
[406728127,1772123456867,-155.07011647,0.00017999,2]
[406728128,1772123456877,-150.97321777,0.00018,2]
[406728129,1772123456886,-261.13165414,0.00018,2]
[406728130,1772123456895,-187.29970089,0.00018,2]
[406728131,1772123456904,-150.75829045,0.00018,2]
[406728132,1772123456915,-155.2688129,0.00018,2]
[406728133,1772123456924,-154.74737258,0.00018,2]
[406728134,1772123456934,-151.86049168,0.00018,2]
[406728135,1772123456943,-152.3043994,0.00018,2]
[406728136,1772123456952,-158.03687726,0.00018,2]
[406728137,1772123456962,-152.29278869,0.00018,2]
[406728138,1772123456971,-156.66979557,0.00018,2]
[406728139,1772123456982,-339.21457322,0.00018,2]
[406728140,1772123456995,-253.52975104,0.00018,2]
[406728141,1772123457004,-234.96081493,0.00018,2]
[406728142,1772123457013,-156.94021525,0.00018,2]
[406728143,1772123457023,-564259.33564386,0.00018,2]
[406728144,1772123457032,-206850.58840362,0.00018,2]
[406728145,1772123457042,-3157115.08879026,0.00018,2]
[406728146,1772123457051,-1356312.67017157,0.00018,2]
[406728147,1772123457365,-365.46849805,0.00018,2]
[406728148,1772123457383,-1000.0,0.00018,2]
[406728149,1772123457694,-618.0,0.00012359,2]
[406728150,1772123457706,-618.0,0.00015359,2]
[406728151,1772123457718,-686846.54758167,0.00018,2]
[406728152,1772123457860,-1567.34549663,0.00011099,2]
[406728336,1772124422645,1100.0,8.8e-05,3]
[406728337,1772124424755,2200.0,8.9e-05,3]
[406728338,1772124426850,3300.0,9e-05,3]
[406728385,1772124631939,-5077.3784717,8.428e-05,2]
[406728392,1772124632017,-798.66527937,8.428e-05,2]
[406728395,1772124632029,-1265.82,8.428e-05,2]
[406728485,1772124637868,-151.24624893,8.428e-05,2]
[406728486,1772124637878,-1200.0,8.529e-05,2]
[406728487,1772124637888,-300.0,8.529e-05,2]
[406728488,1772124637899,-300.0,8.529e-05,2]
[406728489,1772124637910,-195.0,8.529e-05,2]
[406728490,1772124637920,-9773.11,8.53e-05,2]
[406728491,1772124637931,-300.0,8.548e-05,2]
[406728492,1772124637942,-300.0,8.548e-05,2]
[406728493,1772124637952,-376.77167407,8.548e-05,2]
[406728494,1772124637963,-195.0,8.569e-05,2]
[406728495,1772124637973,-195.0,8.569e-05,2]
[406728496,1772124637985,-195.0,8.569e-05,2]
[406728497,1772124637995,-188.09299602,8.582e-05,2]
[406728498,1772124638005,-30053.96,8.635e-05,2]
[406728499,1772124638015,-163.51,8.7e-05,2]
[406728500,1772124638024,-150.0,8.723e-05,2]
[406728501,1772124638035,-772.91,8.724e-05,2]
[406728502,1772124638044,-1312.0,9.177e-05,2]
[406728503,1772124638053,-580.0,9.196e-05,2]
[406728504,1772124638063,-303.0,9.214e-05,2]
[406728505,1772124638072,-1475.0,9.232e-05,2]
[406728506,1772124638082,-250.0,9.251e-05,2]
[406728507,1772124638092,-151.0,9.378e-05,2]
[406728508,1772124638101,-162.43895648,9.379e-05,2]
[406728509,1772124638113,-500.0,9.38e-05,2]
[406728510,1772124638123,-244.02706467,9.38e-05,2]
[406728511,1772124638132,-500.0,9.38e-05,2]
[406728512,1772124638141,-565.63356869,9.38e-05,2]
[406728513,1772124638150,-500.0,9.38e-05,2]
[406728514,1772124638160,-500.0,9.38e-05,2]
[406728515,1772124638169,-500.0,9.38e-05,2]
[406728516,1772124638179,-500.0,9.38e-05,2]
[406728517,1772124638188,-500.0,9.38e-05,2]
[406728518,1772124638197,-454.3546,9.381e-05,2]
[406728519,1772124638206,-1335678.38358863,9.381e-05,2]
[406728520,1772124638221,-674.18499106,9.381e-05,2]
[406728521,1772124638232,-956.79071888,9.381e-05,2]
[406728523,1772124638247,-3350.70995216,9.381e-05,2]
[406728525,1772124638258,-275.99998,9.381e-05,2]
[406728530,1772124638293,-150.0,9.379e-05,2]
[406728532,1772124638302,-188.96,9.381e-05,2]
[406728535,1772124638313,-481.93406538,9.381e-05,2]
[406728536,1772124638324,-18416.83770818,9.381e-05,2]
[406728619,1772124640354,-1162.76105412,9.381e-05,2]
[406728620,1772124640513,-638813.43794159,9.381e-05,2]
[406728621,1772124640523,-4133.1798,9.381e-05,2]
[406728622,1772124640533,-89535.6773,9.381e-05,2]
[406728623,1772124640542,-2500.0,9.381e-05,2]
[406728624,1772124640551,-188.09299601,9.381e-05,2]
[406728625,1772124640561,-1680.0,9.381e-05,2]
[406728627,1772124640571,-420.0,9.381e-05,2]
[406728629,1772124640580,-195.0,9.382e-05,2]
[406728631,1772124640590,-300.0,9.382e-05,2]
[406728633,1772124640602,-163.51,9.4e-05,2]
[406728635,1772124640611,-236.0,9.44e-05,2]
[406728637,1772124640622,-706.0,9.459e-05,2]
[406728639,1772124640632,-540.832,9.478e-05,2]
[406728641,1772124640641,-468.0,9.478e-05,2]
[406728643,1772124640650,-1192.0,9.496e-05,2]
[406728645,1772124640660,-150.0,9.553e-05,2]
[406728647,1772124640669,-17641.39020373,9.57e-05,2]
[406728649,1772124640679,-151.0,9.578e-05,2]
[406728651,1772124640688,-1502.82666669,9.58e-05,2]
[406728653,1772124640698,-1000.0,9.581e-05,2]
[406728655,1772124640707,-1500000.0,9.581e-05,2]
[406728657,1772124640716,-32883.6844,9.581e-05,2]
[406728659,1772124640725,-285.3136,9.581e-05,2]
[406728662,1772124640734,-500.0,9.581e-05,2]
[406728663,1772124640744,-21846.65485425,9.581e-05,2]
[406728665,1772124640752,-196.32932638,9.581e-05,2]
[406728667,1772124640762,-150.0,9.72e-05,2]
[406728669,1772124640772,-150.0,9.72e-05,2]
[406728671,1772124640781,-150.0,9.775e-05,2]
[406728672,1772124640790,-69461.8304039,9.781e-05,7]
[406728674,1772124640799,-500.0,9.855e-05,2]
[406728676,1772124640809,-4400.0,9.9e-05,3]
[406728678,1772124640819,-515.74,0.0001,2]
[406728680,1772124640828,-151.0,0.0001,2]
[406728682,1772124640838,-5500.0,0.0001,3]
[406728684,1772124640851,-151.0,0.0001,2]
[406728686,1772124640860,-151.0,0.0001,2]
[406728688,1772124640869,-151.0,0.0001,2]
[406728690,1772124640879,-151.0,0.0001,2]
[406728692,1772124640888,-151.0,0.0001,2]
[406728694,1772124640898,-151.0,0.0001,2]
[406728696,1772124640909,-151.0,0.0001,2]
[406728698,1772124640921,-151.0,0.0001,2]
[406728700,1772124640930,-151.0,0.0001,2]
[406728702,1772124640940,-151.0,0.0001,2]
[406728704,1772124640950,-151.0,0.0001,2]
[406728706,1772124640959,-151.0,0.0001,2]
[406728708,1772124640969,-151.0,0.0001,2]
[406728710,1772124640978,-151.0,0.0001,2]
[406728712,1772124640987,-151.0,0.0001,2]
[406728714,1772124640997,-151.0,0.0001,2]
[406728716,1772124641006,-151.0,0.0001,2]
[406728717,1772124641021,-151.0,0.0001,2]
[406728720,1772124641031,-151.0,0.0001,2]
[406728721,1772124641040,-500.0,0.0001,2]
[406728723,1772124641050,-500.0,0.0001,2]
[406728725,1772124641061,-151.0,0.0001,2]
[406728727,1772124641071,-500.0,0.0001,2]
[406728729,1772124641081,-500.0,0.0001,2]
[406728731,1772124641091,-151.0,0.0001,2]
[406728732,1772124641102,-500.0,0.0001,2]
[406728733,1772124641112,-500.0,0.0001,2]
[406728734,1772124641121,-151.0,0.0001,2]
[406728735,1772124641131,-500.0,0.0001,2]
[406728736,1772124641142,-151.0,0.0001,2]
[406728737,1772124641152,-500.0,0.0001,2]
[406728738,1772124641162,-500.0,0.0001,2]
[406728739,1772124641172,-151.0,0.0001,2]
[406728740,1772124641182,-151.0,0.0001,2]
[406728741,1772124641191,-553.9571256,0.0001,2]
[406728742,1772124641200,-500.0,0.0001,2]
[406728743,1772124641209,-151.0,0.0001,2]
[406728744,1772124641219,-500.0,0.0001,2]
[406728745,1772124641349,-151.0,0.0001,2]
[406728746,1772124641370,-500.0,0.0001,2]
[406728747,1772124641380,-151.0,0.0001,2]
[406728748,1772124641390,-500.0,0.0001,2]
[406728749,1772124641399,-151.0,0.0001,2]
[406728750,1772124641408,-500.0,0.0001,2]
[406728751,1772124641418,-151.0,0.0001,2]
[406728752,1772124641428,-500.0,0.0001,2]
[406728753,1772124641438,-151.0,0.0001,2]
[406728754,1772124641447,-500.0,0.0001,2]
[406728755,1772124641456,-151.0,0.0001,2]
[406728756,1772124641465,-200.0,0.0001,2]
[406728757,1772124641475,-151.0,0.0001,2]
[406728758,1772124641484,-151.0,0.0001,2]
[406728759,1772124641493,-367.75891248,0.0001,2]
[406728760,1772124641503,-151.0,0.0001,2]
[406728761,1772124641512,-151.0,0.0001,2]
[406728762,1772124641521,-151.0,0.0001,2]
[406728763,1772124641530,-151.0,0.0001,2]
[406728764,1772124641540,-151.0,0.0001,2]
[406728765,1772124641550,-151.0,0.0001,2]
[406728766,1772124641559,-151.0,0.0001,2]
[406728767,1772124641569,-151.0,0.0001,2]
[406728768,1772124641578,-1186.11241235,0.0001,2]
[406728769,1772124641587,-151.0,0.0001,2]
[406728770,1772124641599,-151.0,0.0001,2]
[406728771,1772124641608,-151.0,0.0001,2]
[406728772,1772124641617,-151.0,0.0001,2]
[406728773,1772124641627,-151.0,0.0001,2]
[406728774,1772124641636,-1070.62307231,0.0001,2]
[406728775,1772124641645,-1070.62307231,0.0001,2]
[406728776,1772124641654,-500.0,0.00010129,2]
[406728777,1772124641664,-166.66,0.00010158,2]
[406728778,1772124641673,-515.74,0.00010274,2]
[406728779,1772124641683,-151.0,0.00010297,2]
[406728780,1772124641692,-500.0,0.000103,2]
[406728781,1772124641701,-500.0,0.000103,2]
[406728782,1772124641710,-500.0,0.000103,2]
[406728783,1772124641719,-500.0,0.000103,2]
[406728784,1772124641728,-500.0,0.000103,2]
[406728785,1772124641737,-500.0,0.000103,2]
[406728786,1772124641746,-500.0,0.000103,2]
[406728787,1772124641755,-500.0,0.000103,2]
[406728788,1772124641764,-500.0,0.000103,2]
[406728789,1772124641774,-500.0,0.000103,2]
[406728790,1772124641783,-502.3554838,0.000103,2]
[406728791,1772124641792,-500.0,0.000103,2]
[406728792,1772124641801,-500.0,0.000103,2]
[406728793,1772124641811,-507.0718689,0.000103,2]
[406728794,1772124641820,-501.0074181,0.000103,2]
[406728795,1772124641830,-500.0,0.000103,2]
[406728796,1772124641839,-900.0,0.000103,2]
[406728797,1772124641852,-600.0,0.000103,2]
[406728798,1772124641861,-900.0,0.000103,2]
[406728799,1772124641870,-500.0,0.000103,2]
[406728800,1772124641880,-900.0,0.000103,2]
[406728801,1772124641889,-1200.0,0.000103,2]
[406728802,1772124641899,-600.0,0.000103,2]
[406728803,1772124641911,-526.98589059,0.000103,2]
[406728804,1772124641921,-1200.0,0.000103,2]
[406728805,1772124641930,-900.0,0.000103,2]
[406728806,1772124641939,-600.0,0.000103,2]
[406728807,1772124641948,-1200.0,0.000103,2]
[406728808,1772124641957,-900.0,0.000103,2]
[406728809,1772124641967,-600.0,0.000103,2]
[406728810,1772124641976,-900.0,0.000103,2]
[406728811,1772124641986,-1200.0,0.000103,2]
[406728812,1772124641995,-600.0,0.000103,2]
[406728813,1772124642005,-500.0,0.000103,2]
[406728814,1772124642014,-500.0,0.000103,2]
[406728815,1772124642023,-900.0,0.000103,2]
[406728816,1772124642032,-1200.0,0.000103,2]
[406728817,1772124642042,-600.0,0.000103,2]
[406728818,1772124642051,-500.0,0.000103,2]
[406728819,1772124642061,-900.0,0.000103,2]
[406728820,1772124642070,-1200.0,0.000103,2]
[406728821,1772124642080,-600.0,0.000103,2]
[406728822,1772124642089,-500.0,0.000103,2]
[406728823,1772124642101,-500.0,0.000103,2]
[406728824,1772124642110,-900.0,0.000103,2]
[406728825,1772124642119,-1200.0,0.000103,2]
[406728826,1772124642128,-600.0,0.000103,2]
[406728827,1772124642138,-500.0,0.000103,2]
[406728828,1772124642148,-500.0,0.000103,2]
[406728829,1772124642158,-900.0,0.000103,2]
[406728830,1772124642169,-1200.0,0.000103,2]
[406728831,1772124642178,-600.0,0.000103,2]
[406728832,1772124642188,-557.04324665,0.000103,2]
[406728833,1772124642198,-900.0,0.000103,2]
[406728834,1772124642208,-1200.0,0.000103,2]
[406728835,1772124642217,-600.0,0.000103,2]
[406728836,1772124642227,-500.0,0.000103,2]
[406728837,1772124642236,-900.0,0.000103,2]
[406728838,1772124642245,-600.0,0.000103,2]
[406728839,1772124642255,-1200.0,0.000103,2]
[406728840,1772124642264,-500.0,0.000103,2]
[406728841,1772124642274,-900.0,0.000103,2]
[406728842,1772124642283,-600.0,0.000103,2]
[406728843,1772124642295,-1200.0,0.000103,2]
[406728844,1772124642304,-500.0,0.000103,2]
[406728845,1772124642313,-600.0,0.000103,2]
[406728846,1772124642323,-1725.96679237,0.000103,2]
[406728847,1772124642332,-1200.0,0.000103,2]
[406728848,1772124642342,-600.0,0.000103,2]
[406728849,1772124642352,-500.0,0.000103,2]
[406728850,1772124642361,-1400.0,0.000103,2]
[406728851,1772124642371,-1074.11423967,0.000103,2]
[406728852,1772124642380,-600.0,0.000103,2]
[406728853,1772124642389,-1400.0,0.000103,2]
[406728854,1772124642398,-500.0,0.000103,2]
[406728855,1772124642407,-600.0,0.000103,2]
[406728856,1772124642416,-1200.0,0.000103,2]
[406728857,1772124642426,-500.0,0.000103,2]
[406728858,1772124642435,-1400.0,0.000103,2]
[406728859,1772124642444,-600.0,0.000103,2]
[406728860,1772124642453,-2271.31934016,0.000103,2]
[406728861,1772124642462,-500.0,0.000103,2]
[406728862,1772124642471,-1400.0,0.000103,2]
[406728863,1772124642480,-600.0,0.000103,2]
[406728864,1772124642489,-1400.0,0.000103,2]
[406728865,1772124642498,-500.0,0.000103,2]
[406728866,1772124642507,-600.0,0.000103,2]
[406728867,1772124642516,-1400.0,0.000103,2]
[406728868,1772124642525,-500.0,0.000103,2]
[406728869,1772124642535,-600.0,0.000103,2]
[406728870,1772124642544,-500.0,0.000103,2]
[406728871,1772124642553,-1400.0,0.000103,2]
[406728872,1772124642561,-600.0,0.000103,2]
[406728873,1772124642571,-500.0,0.000103,2]
[406728874,1772124642580,-500.0,0.000103,2]
[406728875,1772124642588,-1400.0,0.000103,2]
[406728876,1772124642599,-600.0,0.000103,2]
[406728877,1772124642609,-500.0,0.000103,2]
[406728878,1772124642618,-500.0,0.000103,2]
[406728880,1772124642627,-1400.0,0.000103,2]
[406728882,1772124642636,-600.0,0.000103,2]
[406728883,1772124642645,-500.0,0.000103,2]
[406728884,1772124642654,-594.38701915,0.000103,2]
[406728885,1772124642663,-1400.0,0.000103,2]
[406728886,1772124642673,-600.0,0.000103,2]
[406728887,1772124642682,-500.0,0.000103,2]
[406728888,1772124642691,-1400.0,0.000103,2]
[406728889,1772124642700,-648.91270751,0.000103,2]
[406728890,1772124642710,-500.0,0.000103,2]
[406728891,1772124642719,-1400.0,0.000103,2]
[406728892,1772124642729,-1400.0,0.000103,2]
[406728895,1772124642738,-500.0,0.000103,2]
[406728896,1772124642747,-2397.24899589,0.000103,2]
[406728897,1772124642756,-860.86736991,0.000103,2]
[406728898,1772124642765,-500.0,0.000103,2]
[406728899,1772124642775,-500.0,0.000103,2]
[406728900,1772124642784,-500.0,0.000103,2]
[406728901,1772124642793,-500.0,0.000103,2]
[406728902,1772124642802,-500.0,0.000103,2]
[406728903,1772124642811,-500.0,0.000103,2]
[406728904,1772124642820,-500.0,0.000103,2]
[406728905,1772124642830,-500.0,0.000103,2]
[406728906,1772124642840,-500.0,0.000103,2]
[406728907,1772124642849,-500.0,0.000103,2]
[406728908,1772124642859,-500.0,0.000103,2]
[406728909,1772124642868,-500.0,0.000103,2]
[406728910,1772124642877,-500.0,0.000103,2]
[406728911,1772124642886,-500.0,0.000103,2]
[406728912,1772124642895,-500.0,0.000103,2]
[406728913,1772124642907,-500.0,0.000103,2]
[406728914,1772124642916,-500.0,0.000103,2]
[406728915,1772124642925,-500.0,0.000103,2]
[406728916,1772124642934,-500.0,0.000103,2]
[406728917,1772124642943,-500.0,0.000103,2]
[406728918,1772124642954,-510.5569704,0.000103,2]
[406728919,1772124642963,-800.34274616,0.000103,2]
[406728920,1772124642973,-2351.0,0.0001032,2]
[406728921,1772124642982,-500.0,0.00010403,2]
[406728922,1772124642994,-166.66,0.00010493,2]
[406728923,1772124643004,-515.74,0.00010548,2]